fUSD/lending_fUSD_20250812
["ID","MTS","AMOUNT","RATE_DAILY","PERIOD"]
[378798495,1755019899526,-400.0,0.00042191,30]
[378798496,1755019899535,-400.0,0.00042191,30]
[378798497,1755019899544,-400.0,0.00042191,30]
[378798498,1755019899681,-429.88,0.00042191,30]
[378798499,1755019899691,-400.0,0.00042191,30]
[378798500,1755019899700,-151.0,0.00042191,30]
[378798501,1755019899709,-400.0,0.00042191,30]
[378798502,1755019899718,-400.0,0.00042191,30]
[378798503,1755019899728,-400.0,0.00042191,30]
[378798504,1755019899737,-400.0,0.00042191,30]
[378798505,1755019899746,-615.24,0.00042191,30]
[378798506,1755019899755,-456.48,0.00042191,30]
[378798507,1755019899764,-244.77,0.00042191,30]
[378798508,1755019899773,-777.75,0.00042191,30]
[378798509,1755019899783,-689.88,0.00042191,30]
[378798510,1755019899793,-400.0,0.00042191,30]
[378798511,1755019899802,-400.0,0.00042191,30]
[378798512,1755019899811,-274.4,0.00042191,30]
[378798513,1755019899820,-400.0,0.00042191,30]
[378798514,1755019899830,-400.0,0.00042191,30]
[378798515,1755019899839,-400.0,0.00042191,30]
[378798516,1755019899848,-400.0,0.00042191,30]
[378798517,1755019899858,-400.0,0.00042191,30]
[378798518,1755019899868,-400.0,0.00042191,30]
[378798519,1755019899877,-429.91,0.00042191,30]
[378798520,1755019899887,-400.0,0.00042191,30]
[378798521,1755019899898,-400.0,0.00042191,30]
[378798522,1755019899907,-452.82,0.00042191,30]
[378798523,1755019899916,-400.0,0.00042191,30]
[378798524,1755019899926,-400.0,0.00042191,30]
[378798525,1755019899935,-627.94,0.00042191,30]
[378798526,1755019899945,-542.01,0.00042191,30]
[378798527,1755019899954,-400.0,0.00042191,30]
[378798528,1755019899963,-400.0,0.00042191,30]
[378798529,1755019899972,-400.0,0.00042191,30]
[378798530,1755019899982,-400.0,0.00042191,30]
[378798531,1755019899991,-400.0,0.00042191,30]
[378798532,1755019900000,-400.0,0.00042191,30]
[378798533,1755019900009,-400.0,0.00042191,30]
[378798534,1755019900019,-400.0,0.00042191,30]
[378798535,1755019900029,-400.0,0.00042191,30]
[378798536,1755019900038,-400.0,0.00042191,30]
[378798537,1755019900048,-400.0,0.00042191,30]
[378798538,1755019900058,-400.0,0.00042191,30]
[378798539,1755019900067,-400.0,0.00042191,30]
[378798540,1755019900076,-400.0,0.00042191,30]
[378798541,1755019900085,-651.67,0.00042191,30]
[378798542,1755019900095,-402.56,0.00042191,30]
[378798543,1755019900104,-738.55,0.00042191,30]
[378798544,1755019900113,-400.0,0.00042191,30]
[378798545,1755019900123,-400.0,0.00042191,30]
[378798546,1755019900133,-519.09,0.00042191,30]
[378798547,1755019900143,-400.0,0.00042191,30]
[378798548,1755019900153,-400.0,0.00042191,30]
[378798549,1755019900162,-400.0,0.00042191,30]
[378798550,1755019900171,-400.0,0.00042191,30]
[378798551,1755019900181,-515.01,0.00042191,30]
[378798552,1755019900190,-400.0,0.00042191,30]
[378798553,1755019900199,-400.0,0.00042191,30]
[378798554,1755019900208,-400.0,0.00042191,30]
[378798555,1755019900217,-516.75,0.00042191,30]
[378798556,1755019900226,-515.86,0.00042191,30]
[378798557,1755019900235,-400.0,0.00042191,30]
[378798558,1755019900245,-652.96,0.00042191,30]
[378798559,1755019900254,-400.0,0.00042191,30]
[378798560,1755019900264,-400.0,0.00042191,30]
[378798561,1755019900273,-400.0,0.00042191,30]
[378798562,1755019900283,-400.0,0.00042191,30]
[378798563,1755019900292,-1016.85,0.00042191,30]
[378798564,1755019900302,-400.0,0.00042191,30]
[378798565,1755019900311,-400.0,0.00042191,30]
[378798566,1755019900321,-400.0,0.00042191,30]
[378798567,1755019900331,-1341.98,0.00042191,30]
[378798568,1755019900340,-400.0,0.00042191,30]
[378798569,1755019900351,-1961.49,0.00042191,30]
[378798570,1755019900361,-444.55,0.00042191,30]
[378798571,1755019900371,-400.0,0.00042191,30]
[378798572,1755019900381,-400.0,0.00042191,30]
[378798573,1755019900390,-400.0,0.00042191,30]
[378798574,1755019900403,-2161.584502,0.00042191,30]
[378798575,1755019900414,-400.0,0.00042191,30]
[378798576,1755019900425,-458.34,0.00042191,30]
[378798577,1755019900435,-400.0,0.00042191,30]
[378798578,1755019900444,-985.94,0.00042191,30]
[378798579,1755019900453,-1301.29,0.00042191,30]
[378798580,1755019900463,-400.0,0.00042191,30]
[378798581,1755019900473,-400.0,0.00042191,30]
[378798582,1755019900483,-400.0,0.00042191,30]
[378798583,1755019900493,-442.68,0.00042191,30]
[378798584,1755019900502,-987.11,0.00042191,30]
[378798585,1755019900511,-199.09363736,0.00042191,30]
[378798586,1755019900521,-309.02130382,0.00042191,30]
[378798587,1755019900530,-400.0,0.00042191,30]
[378798588,1755019900539,-579.88,0.00042191,30]
[378798589,1755019900549,-852.15,0.00042191,30]
[378798590,1755019900559,-400.0,0.00042191,30]
[378798591,1755019900568,-180.63126459,0.00042191,30]
[378798592,1755019900578,-400.0,0.00042191,30]
[378798593,1755019900587,-455.89,0.00042191,30]
[378798594,1755019900597,-1027.79,0.00042191,30]
[378798595,1755019900607,-688.07,0.00042191,30]
[378798596,1755019900616,-683.07,0.00042191,30]
[378798597,1755019900625,-151.0,0.00042191,30]
[378798598,1755019900635,-1007.57,0.00042191,30]
[378798599,1755019900646,-404.51,0.00042191,30]
[378798600,1755019900655,-690.69,0.00042191,30]
[378798601,1755019900665,-1537.04,0.00042191,30]
[378798602,1755019900675,-1229.96,0.00042191,30]
[378798603,1755019900684,-400.0,0.00042191,30]
[378798604,1755019900694,-270.355142,0.00042191,30]
[378798605,1755019900703,-1713.72,0.00042191,30]
[378798606,1755019900713,-400.0,0.00042191,30]
[378798607,1755019900723,-400.0,0.00042191,30]
[378798608,1755019900732,-626.7,0.00042191,30]
[378798609,1755019900742,-631.45,0.00042191,30]
[378798610,1755019900751,-400.0,0.00042191,30]
[378798611,1755019900764,-660.62,0.00042191,30]
[378798612,1755019900773,-880.67,0.00042191,30]
[378798613,1755019900782,-400.0,0.00042191,30]
[378798614,1755019900791,-151.0,0.00042191,30]
[378798615,1755019900801,-400.0,0.00042191,30]
[378798616,1755019900810,-573.08,0.00042191,30]
[378798617,1755019900819,-400.0,0.00042191,30]
[378798618,1755019900828,-509.04,0.00042191,30]
[378798619,1755019900837,-400.0,0.00042191,30]
[378798620,1755019900847,-438.9,0.00042191,30]
[378798621,1755019900856,-400.0,0.00042191,30]
[378798622,1755019900865,-484.67,0.00042191,30]
[378798623,1755019900874,-400.0,0.00042191,30]
[378798624,1755019900883,-400.0,0.00042191,30]
[378798625,1755019900893,-400.0,0.00042191,30]
[378798626,1755019900902,-802.78,0.00042191,30]
[378798627,1755019900912,-1143.8,0.00042191,30]
[378798628,1755019900922,-153.561589,0.00042191,30]
[378798629,1755019900931,-400.0,0.00042191,30]
[378798630,1755019900940,-671.22,0.00042191,30]
[378798631,1755019900950,-422.82,0.00042191,30]
[378798632,1755019900960,-553.33,0.00042191,30]
[378798633,1755019900969,-151.0,0.00042191,30]
[378798634,1755019900978,-400.0,0.00042191,30]
[378798635,1755019900988,-400.0,0.00042191,30]
[378798636,1755019900997,-400.0,0.00042191,30]
[378798637,1755019901006,-400.0,0.00042191,30]
[378798638,1755019901015,-400.0,0.00042191,30]
[378798639,1755019901025,-468.28,0.00042191,30]
[378798640,1755019901036,-1060.05,0.00042191,30]
[378798641,1755019901047,-400.0,0.00042191,30]
[378798642,1755019901057,-597.2,0.00042191,30]
[378798643,1755019901067,-1236.7,0.00042191,30]
[378798644,1755019901076,-1079.26,0.00042191,30]
[378798645,1755019901086,-722.53,0.00042191,30]
[378798646,1755019901095,-151.0,0.00042191,30]
[378798647,1755019901105,-431.9,0.00042191,30]
[378798648,1755019901114,-400.0,0.00042191,30]
[378798649,1755019901123,-191.100628,0.00042191,30]
[378798650,1755019901132,-150.774202,0.00042191,30]
[378798651,1755019901142,-659.08,0.00042191,30]
[378798652,1755019901151,-468.28,0.00042191,30]
[378798653,1755019901160,-400.0,0.00042191,30]
[378798654,1755019901169,-151.0,0.00042191,30]
[378798655,1755019901178,-400.0,0.00042191,30]
[378798656,1755019901187,-282.14,0.00042191,30]
[378798657,1755019901197,-400.0,0.00042191,30]
[378798658,1755019901206,-882.03,0.00042191,30]
[378798659,1755019901215,-400.0,0.00042191,30]
[378798660,1755019901224,-400.0,0.00042191,30]
[378798661,1755019901233,-825.53,0.00042191,30]
[378798662,1755019901243,-400.0,0.00042191,30]
[378798663,1755019901252,-586.94,0.00042191,30]
[378798664,1755019901261,-151.0,0.00042191,30]
[378798665,1755019901270,-400.0,0.00042191,30]
[378798666,1755019901279,-911.18,0.00042191,30]
[378798667,1755019901289,-400.0,0.00042191,30]
[378798668,1755019901298,-400.0,0.00042191,30]
[378798669,1755019901309,-991.2421979,0.00042191,30]
[378798670,1755019901801,-243.7478021,0.00042191,30]
[378798671,1755019901811,-59.50225043,0.00042191,30]
[378798672,1755019902074,692.24,0.00037432,30]
[378798673,1755019902485,-843.0035059,0.00034928,2]
[378798674,1755019902494,-843.0035059,0.0004109,120]
[378798675,1755019902505,-400.0,0.00041095,30]
[378798676,1755019902514,-400.0,0.00041095,30]
[378798677,1755019902526,-400.0,0.00041095,30]
[378798678,1755019902538,-400.0,0.00041095,30]
[378798679,1755019902547,-524.72,0.00041095,30]
[378798680,1755019902556,-306.45981204,0.00041095,30]
[378798681,1755019902586,-93.54018796,0.00041095,30]
[378798682,1755019902597,-400.0,0.00041369,30]
[378798683,1755019902607,-400.0,0.00041369,30]
[378798684,1755019902616,-400.0,0.00041369,30]
[378798685,1755019902626,-400.0,0.00041643,30]
[378798686,1755019902636,-400.0,0.00041643,30]
[378798687,1755019902647,-400.0,0.00041643,30]
[378798688,1755019902656,-27.88825654,0.00041643,30]
[378798689,1755019902668,-509.76174346,0.00041643,30]
[378798690,1755019902678,-151.0,0.00041643,30]
[378798691,1755019902688,-400.0,0.00041643,30]
[378798692,1755019902697,-400.0,0.00041643,30]
[378798693,1755019902707,-400.0,0.00041917,30]
[378798694,1755019902717,-400.0,0.00041917,30]
[378798695,1755019902726,-368.12907143,0.00041917,30]
[378798696,1755019902736,-151.0,0.00041917,30]
[378798697,1755019902745,-400.0,0.00041917,30]
[378798698,1755019902755,-530.61774957,0.00042191,30]
[378798699,1755019902765,-400.0,0.00042191,30]
[378798700,1755019902775,-853.68,0.00042191,30]
[378798701,1755019902795,-606.21143554,0.00042191,30]
[378798702,1755019902814,-119.80856446,0.00042191,30]
[378798703,1755019902826,-400.0,0.00042191,30]
[378798704,1755019902836,-790.14,0.00042191,30]
[378798705,1755019902846,-970.03,0.00042191,30]
[378798706,1755019902857,-617.42,0.00042191,30]
[378798707,1755019902867,-400.0,0.00042191,30]
[378798708,1755019902877,-400.0,0.00042191,30]
[378798709,1755019902888,-400.0,0.00042191,30]
[378798710,1755019902901,-690.93,0.00042191,30]
[378798711,1755019902911,-68.82143554,0.00042191,30]
[378798712,1755019903021,-400.0,0.00041095,30]
[378798713,1755019903031,-203.80100003,0.00042191,30]
[378798714,1755019903071,-296.63,0.00041917,30]
[378798715,1755019903081,-127.37756443,0.00042191,30]
[378798716,1755019903092,-1208.27,0.00042191,30]
[378798717,1755019903102,-408.08,0.00042191,30]
[378798718,1755019903112,-400.0,0.00042191,30]
[378798719,1755019903121,-434.25,0.00042191,30]
[378798720,1755019903131,-400.0,0.00042191,30]
[378798721,1755019903140,-400.0,0.00042191,30]
[378798722,1755019903152,-1110.96,0.00042191,30]
[378798723,1755019903161,-400.0,0.00042191,30]
[378798724,1755019903171,-151.0,0.00042191,30]
[378798725,1755019903180,-400.0,0.00042191,30]
[378798726,1755019903190,-400.0,0.00042191,30]
[378798727,1755019903199,-1316.93,0.00042191,30]
[378798728,1755019903208,-400.0,0.00042191,30]
[378798729,1755019903217,-819.53,0.00042191,30]
[378798730,1755019903227,-400.0,0.00042191,30]
[378798731,1755019903366,-400.0,0.00042191,30]
[378798732,1755019903376,-70.33182237,0.00042191,30]
[378798733,1755019903389,-680.23817763,0.00042191,30]
[378798734,1755019903400,-408.0,0.00042191,30]
[378798735,1755019903410,-400.0,0.00042191,30]
[378798736,1755019903419,-400.0,0.00042191,30]
[378798737,1755019903429,-400.0,0.00042191,30]
[378798738,1755019903439,-932.64,0.00042191,30]
[378798739,1755019903448,-583.48,0.00042191,30]
[378798740,1755019903457,-560.3,0.00042191,30]
[378798741,1755019903467,-411.34081275,0.00042191,30]
[378798742,1755019903476,-1056.87,0.00042191,30]
[378798743,1755019903485,-400.0,0.00042191,30]
[378798744,1755019903495,-811.45,0.00042191,30]
[378798745,1755019903506,-400.0,0.00042191,30]
[378798746,1755019903515,-400.0,0.00042191,30]
[378798747,1755019903524,-1437.63,0.00042191,30]
[378798748,1755019903533,-557.18,0.00042191,30]
[378798749,1755019903542,-400.0,0.00042191,30]
[378798750,1755019903552,-486.86277325,0.00042191,30]
[378798751,1755019903561,-745.9,0.00042191,30]
[378798752,1755019903571,-435.11,0.00042191,30]
[378798753,1755019903580,-400.0,0.00042191,30]
[378798754,1755019903589,-1009.8,0.00042191,30]
[378798755,1755019903599,-400.0,0.00042191,30]
[378798756,1755019903608,-964.91,0.00042191,30]
[378798757,1755019903618,-400.0,0.00042191,30]
[378798758,1755019903627,-1167.37,0.00042191,30]
[378798759,1755019903636,-986.7,0.00042191,30]
[378798760,1755019903647,-400.0,0.00042191,30]
[378798761,1755019903656,-400.0,0.00042191,30]
[378798762,1755019903666,-400.0,0.00042191,30]
[378798763,1755019903675,-400.0,0.00042191,30]
[378798764,1755019903685,-627.45,0.00042191,30]
[378798765,1755019903694,-400.0,0.00042191,30]
[378798766,1755019903704,-328.66,0.00042191,30]
[378798767,1755019903713,-976.63,0.00042191,30]
[378798768,1755019903723,-656.98,0.00042191,30]
[378798769,1755019903733,-413.35,0.00042191,30]
[378798770,1755019903743,-905.85,0.00042191,30]
[378798771,1755019903752,-1446.5,0.00042191,30]
[378798772,1755019903761,-1322.47,0.00042191,30]
[378798773,1755019903771,-400.0,0.00042191,30]
[378798774,1755019903780,-785.21,0.00042191,30]
[378798775,1755019903789,-400.0,0.00042191,30]
[378798776,1755019903799,-411.68,0.00042191,30]
[378798777,1755019903808,-400.0,0.00042191,30]
[378798778,1755019903818,-902.06,0.00042191,30]
[378798779,1755019903827,-400.0,0.00042191,30]
[378798780,1755019903836,-580.5,0.00042191,30]
[378798781,1755019903846,-400.0,0.00042191,30]
[378798782,1755019903855,-400.0,0.00042191,30]
[378798783,1755019903865,-1257.27,0.00042191,30]
[378798784,1755019903874,-400.0,0.00042191,30]
[378798785,1755019903884,-1351.37,0.00042191,30]
[378798786,1755019903894,-400.0,0.00042191,30]
[378798787,1755019903903,-400.0,0.00042191,30]
[378798788,1755019903912,-639.77,0.00042191,30]
[378798789,1755019903922,-400.0,0.00042191,30]
[378798790,1755019903932,-750.15,0.00042191,30]
[378798791,1755019903942,-1237.4,0.00042191,30]
[378798792,1755019903952,-400.0,0.00042191,30]
[378798793,1755019903961,-400.0,0.00042191,30]
[378798794,1755019903971,-539.46,0.00042191,30]
[378798795,1755019903980,-528.31,0.00042191,30]
[378798796,1755019903990,-400.0,0.00042191,30]
[378798797,1755019903999,-407.93,0.00042191,30]
[378798798,1755019904009,-535.41,0.00042191,30]
[378798799,1755019904018,-400.0,0.00042191,30]
[378798800,1755019904028,-437.68,0.00042191,30]
[378798801,1755019904037,-1547.54,0.00042191,30]
[378798802,1755019904047,-1298.42,0.00042191,30]
[378798803,1755019904056,-725.45,0.00042191,30]
[378798804,1755019904066,-922.46,0.00042191,30]
[378798805,1755019904075,-400.0,0.00042191,30]
[378798806,1755019904085,-400.0,0.00042191,30]
[378798807,1755019904094,-589.55,0.00042191,30]
[378798808,1755019904103,-151.0,0.00042191,30]
[378798809,1755019904112,-400.0,0.00042191,30]
[378798810,1755019904122,-400.0,0.00042191,30]
[378798811,1755019904132,-459.61,0.00042191,30]
[378798812,1755019904142,-400.0,0.00042191,30]
[378798813,1755019904152,-400.0,0.00042191,30]
[378798814,1755019904161,-898.35,0.00042191,30]
[378798815,1755019904170,-682.79,0.00042191,30]
[378798816,1755019904180,-400.0,0.00042191,30]
[378798817,1755019904189,-400.0,0.00042191,30]
[378798818,1755019904199,-1299.25,0.00042191,30]
[378798819,1755019904208,-400.0,0.00042191,30]
[378798820,1755019904217,-1000.0,0.00042191,30]
[378798821,1755019904226,-151.0,0.00042191,30]
[378798822,1755019904235,-1172.85,0.00042191,30]
[378798823,1755019904245,-1034.16,0.00042191,30]
[378798824,1755019904254,-144.69823636,0.00042191,30]
[378798825,1755019904286,-265.59999999,0.00041369,30]
[378798826,1755019904297,-134.40000001,0.00041369,30]
[378798827,1755019904307,-6.30176364,0.00042191,30]
[378798828,1755019904316,-400.0,0.00042191,30]
[378798829,1755019904325,-81.69823636,0.00042191,30]
[378798830,1755019904418,-400.0,0.00041095,30]
[378798831,1755019904427,-318.30176364,0.00042191,30]
[378798832,1755019904438,-783.56,0.00042191,30]
[378798833,1755019904447,-151.0,0.00042191,30]
[378798834,1755019904457,-400.0,0.00042191,30]
[378798835,1755019904466,-400.0,0.00042191,30]
[378798836,1755019904475,-400.0,0.00042191,30]
[378798837,1755019904484,-1408.03,0.00042191,30]
[378798838,1755019904494,-400.0,0.00042191,30]
[378798839,1755019904503,-400.0,0.00042191,30]
[378798840,1755019904512,-1085.29,0.00042191,30]
[378798841,1755019904522,-1341.55,0.00042191,30]
[378798842,1755019904531,-400.0,0.00042191,30]
[378798843,1755019904540,-533.38,0.00042191,30]
[378798844,1755019904549,-400.0,0.00042191,30]
[378798845,1755019904558,-159.18823636,0.00042191,30]
[378798846,1755019910315,208.03327509,0.00037432,120]
[378798852,1755019951220,10000.0,0.00030137,120]
[378798855,1755019963249,165.7,0.00037432,30]
[378798858,1755020003479,350.0,0.00037432,30]
[378798892,1755020059618,5800.0,0.00030137,120]
[378798899,1755020419919,170.63136345,0.00037489,120]
[378798905,1755020903018,165.11,0.00028273,120]
[378798926,1755021031834,-209.20847257,0.00022932,8]
[378798929,1755021031845,-300.0,0.00023745,2]
[378798930,1755021031855,-179.43471148,0.00024558,2]
[378798932,1755021031867,-161.8,0.00024567,2]
[378798934,1755021031876,-519.58141059,0.00024657,2]
[378798936,1755021031885,-207.36989413,0.00024657,2]
[378798937,1755021031912,-92.63010587,0.00024657,2]
[378798938,1755021031922,-300.0,0.00024657,2]
[378798939,1755021031931,-1200.0,0.00024657,2]
[378798940,1755021031941,-173.48970762,0.00024658,15]
[378798941,1755021031952,-1826.51029238,0.00024658,15]
[378798942,1755021031961,-2000.0,0.00024658,15]
[378798943,1755021031970,-2000.0,0.00024658,15]
[378798944,1755021031979,-500.0,0.00024932,2]
[378798945,1755021031988,-500.0,0.00024932,2]
[378798946,1755021031997,-500.0,0.00024932,2]
[378798947,1755021032006,-300.0,0.00025225,2]
[378798948,1755021032015,-179.43471146,0.00026161,2]
[378798949,1755021032024,-420.0,0.00026721,2]
[378798950,1755021032033,-507.45485635,0.0002675,2]
[378798951,1755021032042,-500.0,0.0002675,2]
[378798952,1755021032051,-500.0,0.0002675,2]
[378798953,1755021032061,-500.0,0.0002675,2]
[378798954,1755021032070,-500.0,0.0002675,2]
[378798955,1755021032080,-500.0,0.0002675,2]
[378798956,1755021032089,-500.0,0.0002675,2]
[378798957,1755021032098,-500.0,0.0002675,2]
[378798958,1755021032107,-2500.0,0.00027013,2]
[378798959,1755021032118,-250.0,0.00027013,2]
[378798960,1755021032127,-1000.0,0.00027298,2]
[378798961,1755021032137,-500.0,0.00027373,2]
[378798962,1755021032146,-500.0,0.00027373,2]
[378798963,1755021032157,-500.0,0.00027373,2]
[378798964,1755021032167,-500.0,0.00027373,2]
[378798965,1755021032176,-372.62114567,0.0002739,2]
[378798966,1755021032185,-550.0,0.00027399,2]
[378798967,1755021032195,-62000.0,0.000274,30]
[378798968,1755021032204,-179.43471146,0.00027763,2]
[378798969,1755021032213,-1500.0,0.00027846,5]
[378798971,1755021032223,-170.0,0.00027863,26]
[378798973,1755021032233,-600.0,0.00028474,80]
[378798975,1755021032243,-683.77,0.00028542,2]
[378798977,1755021032251,-666.0,0.00028576,3]
[378798978,1755021032261,-216.57,0.00028614,2]
[378798980,1755021032271,-13429.46,0.00028675,2]
[378798982,1755021032280,-167.88,0.00028783,2]
[378798984,1755021032290,-180.0,0.00028958,2]
[378798986,1755021032299,-1176.29,0.00029121,2]
[378798987,1755021032308,-1000.0,0.00029775,2]
[378798989,1755021032317,-1171.16,0.00030009,2]
[378798991,1755021032327,-216.57,0.00030045,2]
[378798993,1755021032336,-212.53,0.00030537,2]
[378798995,1755021032345,-153.94,0.00030657,2]
[378798998,1755021032355,-700.0,0.000307,11]
[378798999,1755021032366,-1055.107,0.00030741,27]
[378799001,1755021032376,-153.94,0.00030759,2]
[378799004,1755021032385,-1500.0,0.000308,11]
[378799006,1755021032394,-153.94,0.00030862,2]
[378799007,1755021032403,-272.68671041,0.0003089,2]
[378799008,1755021032412,-352.16806322,0.0003089,15]
[378799009,1755021032422,-212.67068904,0.000309,2]
[378799010,1755021032431,-159.4303546,0.000309,2]
[378799011,1755021032441,-2200.0,0.000309,11]
[378799012,1755021032450,-153.94,0.00030964,2]
[378799013,1755021032460,-501.02242033,0.00030973,5]
[378799014,1755021032469,-170.38145232,0.00030973,5]
[378799015,1755021032478,-1136.08,0.0003098,2]
[378799016,1755021032487,-1136.08,0.0003098,2]
[378799017,1755021032497,-333348.5018,0.0003099,2]
[378799018,1755021032506,-39750.6995398,0.0003099,2]
[378799019,1755021032518,-73380.36966814,0.0003099,2]
[378799020,1755021032534,-333.74091558,0.0003099,2]
[378799021,1755021032545,-3584.14154,0.0003099,2]
[378799022,1755021032557,-1217.90063364,0.0003099,2]
[378799023,1755021032582,-289058.91484684,0.0003099,2]
[378799024,1755021032592,-203.61863771,0.0003099,2]
[378799025,1755021032602,-300.0,0.00030999,10]
[378799026,1755021032611,-208.45,0.00030999,2]
[378799027,1755021032621,-150.0,0.00030999,2]
[378799028,1755021032630,-93685.85804207,0.00031,30]
[378799029,1755021032642,-32658.26543183,0.00031,30]
[378799030,1755021032665,-5344.26128386,0.00031,30]
[378799031,1755021032676,-17314.50360436,0.00031,30]
[378799032,1755021032698,-389.23703594,0.00031,30]
[378799033,1755021032709,-1235.82210552,0.00031,30]
[378799035,1755021037759,-237.66831047,0.00027389,2]
[378799036,1755021037770,-211.01068953,0.0003089,2]
[378799037,1755021037814,-3061.61812912,0.0003089,2]
[378799038,1755021037870,-3655.49870964,0.0003089,2]
[378799039,1755021037880,-715.72,0.00030999,5]
[378799040,1755021037890,-18048.78129036,0.00031,30]
[378799041,1755021037924,-17393.35679392,0.00031,30]
[378799042,1755021037935,-3347.2398341,0.00031,30]
[378799043,1755021038022,-450.58499,0.00031,30]
[378799044,1755021038033,-68438.57774273,0.00031,30]
[378799045,1755021038071,-1465.2574682,0.00031,30]
[378799046,1755021038082,-833.69583873,0.00031,30]
[378799051,1755021039818,-8993.39338426,0.00031,30]
[378799052,1755021039873,-2388.0,0.00031,30]
[378799053,1755021039924,-416.916,0.00031,30]
[378799054,1755021039979,-11090.47386199,0.00031,30]
[378799064,1755021042882,-3833.24341157,0.00031,30]
[378799065,1755021042894,-354.33565465,0.00031,30]
[378799067,1755021043481,-2.51523119,0.00031,30]
[378799073,1755021046244,-482117.3572689,0.00031,30]
[378799086,1755021122057,2500.0,0.0003011,120]
[378799087,1755021122198,2500.0,0.00027381,120]
[378799088,1755021145584,400.00942561,0.00037491,30]
[378799089,1755021156360,300.0,0.0003,120]
[378799091,1755021198127,1500.0,0.0003,120]
[378799142,1755021335202,2360.0,0.0003,120]
[378799162,1755021611130,185.21,0.00013699,2]
[378799346,1755021779499,10000.0,0.00037504,30]
[378799347,1755021783436,10000.0,0.00037504,31]
[378799351,1755021791009,10000.0,0.00037504,32]
[378799365,1755021802775,10000.0,0.00037504,33]
[378799379,1755021809896,10000.0,0.00037504,34]
[378799388,1755021826583,10000.0,0.00037504,35]
[378799389,1755021828539,2741.7,0.00037504,120]
[378799390,1755021829686,10000.0,0.00037504,36]
[378799392,1755021832831,10000.0,0.00037504,37]
[378799405,1755021836734,10000.0,0.00037504,38]
[378799416,1755021840733,10000.0,0.00037504,39]
[378799493,1755021887221,152.0,0.00037507,30]
[378799570,1755021992140,-156.0,0.00022959,8]
[378799571,1755021992161,-17.34287347,0.00024635,2]
[378799813,1755022148821,1194.85,0.0002981,120]
[378799983,1755022203255,1569.13,0.00029804,120]
[378800040,1755022231990,-280.75453473,0.00024635,2]
[378800041,1755022232001,-2000.0,0.00024658,15]
[378800042,1755022232011,-178.63726194,0.00024745,2]
[378800043,1755022232021,-161.8,0.00024845,2]
[378800044,1755022232030,-500.0,0.00024932,2]
[378800045,1755022232042,-500.0,0.00024932,2]
[378800046,1755022232052,-843.0035059,0.00029,10]
[378800047,1755022232062,-600.0,0.00029712,80]
[378800048,1755022232075,-171.57,0.00030021,2]
[378800049,1755022232086,-563.58,0.0003016,2]
[378800050,1755022232095,-1200.0,0.00030384,2]
[378800051,1755022232105,-400.0,0.00030385,2]
[378800052,1755022232114,-740.07,0.00030387,2]
[378800053,1755022232126,-250.0,0.00030389,2]